bitfinex/quotes_BTCUSD_20251214
["timestamp","ask_amount","ask_price","bid_price","bid_amount"]
[1765673353703,0.25435053,90441.0,90439.0,0.00023811]
[1765673354035,0.25435053,90441.0,90440.0,0.01748]
[1765673359012,0.03320962,90441.0,90440.0,0.01748]
[1765673364185,0.23219515,90442.0,90440.0,0.01748]
[1765673364371,0.23219515,90442.0,90441.0,0.03961437]
[1765673364577,0.26540477,90442.0,90441.0,0.03961437]
[1765673365198,0.26540477,90442.0,90440.0,0.01748]
[1765673369180,0.26540477,90442.0,90441.0,0.03962254]
[1765673369559,0.26540477,90442.0,90440.0,0.01748]
[1765673370645,0.03320962,90442.0,90440.0,0.01748]
[1765673370844,0.22113807,90442.0,90440.0,0.07688333]
[1765673372643,0.22113807,90442.0,90440.0,0.07888333]
[1765673373394,0.23219226,90443.0,90441.0,0.05940333]
[1765673373805,0.23219226,90443.0,90440.0,0.01948]
[1765673373806,0.23219226,90443.0,90440.0,0.07888333]
[1765673374897,0.23219226,90443.0,90441.0,0.05940333]
[1765673375093,0.01105668,90443.0,90441.0,0.06040333]
[1765673375320,0.01105668,90443.0,90442.0,0.05940333]
[1765673376025,0.01105668,90443.0,90441.0,0.06040333]
[1765673376237,0.01105668,90443.0,90441.0,0.05940333]
[1765673376618,0.01105668,90443.0,90442.0,0.001]
[1765673377422,0.01105656,90444.0,90442.0,0.001]
[1765673377840,0.23218969,90444.0,90442.0,0.001]
[1765673378087,0.22113619,90442.0,90441.0,0.001]
[1765673378843,0.22113619,90442.0,90440.0,0.01748]
[1765673379182,0.22113619,90442.0,90440.0,0.07688333]
[1765673379454,0.22113619,90442.0,90441.0,0.001]
[1765673379811,0.22113619,90442.0,90441.0,0.06140333]
[1765673380175,0.22113619,90442.0,90441.0,0.06040333]
[1765673382021,0.22113619,90442.0,90441.0,0.06140333]
[1765673382380,0.22113619,90442.0,90441.0,0.002]
[1765673397644,0.22113619,90442.0,90441.0,0.06140333]
[1765673398368,0.22113619,90442.0,90441.0,0.002]
[1765673399345,0.22113619,90442.0,90441.0,0.06140333]
[1765673401176,0.01144085,90447.0,90441.0,0.06140333]
[1765673401177,0.01105632,90446.0,90442.0,0.0110568]
[1765673401336,0.01105632,90446.0,90442.0,0.05944686]
[1765673401738,0.01105632,90446.0,90443.0,0.02437]
[1765673401967,0.01105632,90446.0,90445.0,0.1108]
[1765673402527,0.23218538,90445.0,90442.0,0.07050366]
[1765673402734,0.01105644,90445.0,90443.0,0.05944686]
[1765673403668,0.2211313,90444.0,90443.0,0.05944686]
[1765673403971,0.2211313,90444.0,90443.0,0.002]
[1765673404408,0.2211313,90444.0,90443.0,0.06144686]
[1765673404609,0.2211313,90444.0,90443.0,0.06044686]
[1765673404822,0.2211313,90444.0,90443.0,0.001]
[1765673405523,0.01105644,90445.0,90443.0,0.001]
[1765673405686,0.23218513,90446.0,90443.0,0.06044686]
[1765673406023,0.23218513,90446.0,90443.0,0.06144686]
[1765673406206,0.23218513,90446.0,90443.0,0.06044686]
[1765673406590,0.23218513,90446.0,90443.0,0.06244686]
[1765673406775,0.23218513,90446.0,90443.0,0.06044686]
[1765673406982,0.01105644,90445.0,90442.0,0.05944686]
[1765673407188,0.01105644,90445.0,90443.0,0.001]
[1765673407387,0.01105644,90445.0,90443.0,0.002]
[1765673407735,0.23218757,90445.0,90443.0,0.002]
[1765673407936,0.23218757,90445.0,90443.0,0.001]
[1765673408136,0.23218757,90445.0,90443.0,0.06044686]
[1765673408320,0.23218757,90445.0,90443.0,0.003]
[1765673408660,0.23218757,90445.0,90443.0,0.002]
[1765673409118,0.01105644,90445.0,90443.0,0.002]
[1765673409324,0.01105644,90445.0,90443.0,0.06144686]
[1765673409532,0.01105644,90445.0,90444.0,0.05944686]
[1765673409754,0.01105644,90445.0,90443.0,0.06344686]
[1765673409954,0.23218741,90445.0,90443.0,0.06344686]
[1765673410155,0.01105644,90445.0,90443.0,0.06344686]
[1765673410353,0.23218513,90446.0,90443.0,0.06144686]
[1765673410535,0.23218513,90446.0,90444.0,0.05944686]
[1765673410744,0.23218513,90446.0,90444.0,0.06144686]
[1765673410926,0.01105632,90446.0,90444.0,0.06144686]
[1765673411332,0.00038466,90447.0,90445.0,0.23717886]
[1765673411567,0.00038466,90447.0,90446.0,0.15122]
[1765673412273,0.18017404,90452.0,90446.0,0.16227632]
[1765673412493,0.18017404,90452.0,90447.0,0.07048221]
[1765673412735,0.0110557,90451.0,90447.0,0.09485221]
[1765673413162,0.0110557,90451.0,90447.0,0.03542619]
[1765673413579,0.0110557,90451.0,90447.0,0.09485221]
[1765673413580,0.23217032,90451.0,90447.0,0.09485221]
[1765673413894,0.23217032,90451.0,90448.0,0.23217726]
[1765673413895,0.0110557,90451.0,90448.0,0.23217726]
[1765673414094,0.01105522,90455.0,90450.0,0.2604106]
[1765673414251,0.01105522,90455.0,90454.0,0.1108]
[1765673414876,0.22110686,90454.0,90453.0,0.03960529]
[1765673415281,0.22110686,90454.0,90452.0,0.15040529]
[1765673415988,0.22110686,90454.0,90453.0,0.002]
[1765673416555,0.22110686,90454.0,90452.0,0.15040529]
[1765673416762,0.22110686,90454.0,90452.0,0.15240529]
[1765673417004,0.22110686,90454.0,90453.0,0.002]
[1765673417490,0.22110686,90454.0,90452.0,0.15240529]
[1765673417715,0.22110686,90454.0,90453.0,0.03960529]
[1765673418395,0.22110686,90454.0,90453.0,0.04160529]
[1765673418611,0.22110686,90454.0,90453.0,0.002]
[1765673418897,0.22110686,90454.0,90453.0,0.04160529]
[1765673419200,0.22110686,90454.0,90453.0,0.002]
[1765673419375,0.01105522,90455.0,90453.0,0.04160529]
[1765673419580,0.01105522,90455.0,90454.0,0.03960529]
[1765673420314,0.23216128,90455.0,90453.0,0.04360529]
[1765673420514,0.23216128,90455.0,90454.0,0.03960529]
[1765673421629,0.23216128,90455.0,90453.0,0.03960529]
[1765673421852,0.23216128,90455.0,90454.0,0.001]
[1765673422185,0.23216128,90455.0,90454.0,0.04060529]
[1765673423940,0.23216128,90455.0,90454.0,0.04160529]
[1765673424340,0.23216128,90455.0,90454.0,0.002]
[1765673424685,0.23216128,90455.0,90454.0,0.04160529]
[1765673424897,0.23216128,90455.0,90454.0,0.002]
[1765673425065,0.23216128,90455.0,90454.0,0.04160529]
[1765673430832,0.23216128,90455.0,90454.0,0.002]
[1765673431382,0.23216128,90455.0,90454.0,0.04160529]
[1765673432046,0.26339639,90455.0,90454.0,0.002]
[1765673432282,0.26698502,90455.0,90454.0,0.002]
[1765673433284,0.22111908,90449.0,90447.0,0.02968103]
[1765673433944,0.03321087,90448.0,90447.0,0.02968103]
[1765673441868,0.10505035,90448.0,90447.0,0.02968103]
[1765673444173,0.22112397,90447.0,90446.0,0.08979659]
[1765673444794,0.25433484,90447.0,90446.0,0.08979659]
[1765673454187,0.25433484,90447.0,90446.0,0.06011556]
[1765673461813,0.05519501,90441.0,90439.0,0.0398434]
[1765673462019,0.22116065,90432.0,90431.0,0.03966565]
[1765673462150,0.22116065,90432.0,90431.0,0.00038466]
[1765673462549,0.25437689,90432.0,90431.0,0.00062281]
[1765673462989,0.3095719,90432.0,90431.0,0.00062281]
[1765673463552,0.25437689,90432.0,90431.0,0.00062281]
[1765673478426,0.36507295,90432.0,90431.0,0.00062281]
[1765673482371,0.65577295,90432.0,90431.0,0.00062281]
[1765673485776,0.60037189,90432.0,90431.0,0.00062281]
[1765673488610,0.54507689,90432.0,90431.0,0.00062281]
[1765673488809,0.84457189,90432.0,90431.0,0.00062281]
[1765673489252,0.78927689,90432.0,90431.0,0.00062281]
[1765673489454,0.84457189,90432.0,90431.0,0.00062281]
[1765673490236,0.78927689,90432.0,90431.0,0.00062281]
[1765673500346,0.79963819,90432.0,90431.0,0.00062281]
[1765673503225,0.85493319,90432.0,90431.0,0.00062281]
[1765673503431,0.79963819,90432.0,90431.0,0.00062281]
[1765673504091,0.49857689,90432.0,90431.0,0.00062281]
[1765673519175,0.49357689,90432.0,90431.0,0.00062281]
[1765673600545,0.24937689,90432.0,90431.0,0.00062281]
[1765673615141,0.30467189,90432.0,90431.0,0.00062281]
[1765673616550,0.24937689,90432.0,90431.0,0.00062281]
[1765673623565,0.01105754,90436.0,90431.0,0.00062281]
[1765673623566,0.01105656,90444.0,90439.0,0.01105717]
[1765673623667,0.01105656,90444.0,90440.0,0.01744]
[1765673623668,0.01105693,90441.0,90440.0,0.01744]
[1765673623892,0.01105668,90443.0,90440.0,0.12824]
[1765673624261,0.02277729,90441.0,90440.0,0.16783041]
[1765673624619,0.02277729,90441.0,90440.0,0.18349041]
[1765673625271,0.02277729,90441.0,90440.0,0.16707]
[1765673627600,0.02277729,90441.0,90440.0,0.38821108]
[1765673627981,0.02277729,90441.0,90440.0,0.16707]
[1765673628224,0.02277729,90441.0,90440.0,0.38821108]
[1765673628770,0.01105668,90443.0,90440.0,0.18012705]
[1765673629007,0.01105668,90443.0,90442.0,0.04531243]
[1765673629536,0.0442659,90443.0,90442.0,0.03883]
[1765673630665,0.0442659,90443.0,90442.0,0.03983]
[1765673631070,0.01105668,90443.0,90442.0,0.04083]
[1765673631949,0.01105668,90443.0,90442.0,0.0821818]
[1765673632551,0.01105668,90443.0,90442.0,0.05255]
[1765673637506,0.01105668,90443.0,90442.0,0.02938]
[1765673640575,0.01105668,90443.0,90442.0,0.002]
[1765673640976,0.08289616,90443.0,90442.0,0.002]
[1765673641315,0.22113619,90442.0,90440.0,0.0470718]
[1765673643111,0.22113619,90442.0,90440.0,0.0296318]
[1765673643317,0.22114353,90439.0,90437.0,0.0296318]
[1765673643522,0.22114842,90437.0,90432.0,0.03959041]
[1765673643720,0.23221097,90435.0,90434.0,0.1108]
[1765673644227,0.2211582,90433.0,90432.0,0.03959041]
[1765673644431,0.2211582,90433.0,90432.0,0.05703041]
[1765673645419,0.2211582,90433.0,90432.0,0.01844]
[1765673645624,0.2211582,90433.0,90432.0,0.0579527]
[1765673646167,0.2211582,90433.0,90432.0,0.01844]
[1765673646643,0.2211582,90433.0,90432.0,0.01944]
[1765673649236,0.2211582,90433.0,90432.0,0.002]
[1765673649444,0.2211582,90433.0,90432.0,0.13024]
[1765673649996,0.2211582,90433.0,90432.0,0.01944]
[1765673651491,0.2211582,90433.0,90432.0,0.07888906]
[1765673652259,0.2211582,90433.0,90432.0,0.01944]
[1765673663439,0.2211582,90433.0,90432.0,0.07889859]
[1765673665238,0.2211582,90433.0,90432.0,0.01944]
[1765673670282,0.2211582,90433.0,90432.0,0.07889482]
[1765673671337,0.2211582,90433.0,90432.0,0.01944]
[1765673671903,0.2211582,90433.0,90432.0,0.05908262]
[1765673673474,0.2211582,90433.0,90432.0,0.01944]
[1765673674669,0.2211582,90433.0,90432.0,0.01844]
[1765673675029,0.2211582,90433.0,90432.0,0.01744]
[1765673680112,0.2211582,90433.0,90432.0,0.04715726]
[1765673680656,0.2211582,90433.0,90432.0,0.01744]
[1765673687663,0.2211582,90433.0,90432.0,0.01844]
[1765673688011,0.23221163,90435.0,90433.0,0.1108]
[1765673688215,0.23221163,90435.0,90433.0,0.12222]
[1765673688386,0.23221163,90435.0,90433.0,0.14616]
[1765673688579,0.23221163,90435.0,90433.0,0.18580262]
[1765673689264,0.23221163,90435.0,90433.0,0.14716]
[1765673689514,0.23221163,90435.0,90433.0,0.18680262]
[1765673690427,0.23221163,90435.0,90433.0,0.18780262]
[1765673690626,0.23221163,90435.0,90433.0,0.16386262]
[1765673691400,0.22115197,90436.0,90433.0,0.07700262]
[1765673691401,0.01105754,90436.0,90433.0,0.07700262]
[1765673692233,0.01105754,90436.0,90433.0,0.08606053]
[1765673692393,0.03321198,90435.0,90433.0,0.08606053]
[1765673692600,0.03321198,90435.0,90434.0,0.03964262]
[1765673693193,0.25436529,90435.0,90434.0,0.03964262]
[1765673694610,0.25436529,90435.0,90434.0,0.04064262]
[1765673695335,0.25436529,90435.0,90434.0,0.04164262]
[1765673696412,0.25436529,90435.0,90434.0,0.002]
[1765673698140,0.25436529,90435.0,90434.0,0.04164262]
[1765673699903,0.25436529,90435.0,90434.0,0.002]
[1765673700104,0.54506529,90435.0,90434.0,0.002]
[1765673700722,0.6002603,90435.0,90434.0,0.002]
[1765673700950,0.54506529,90435.0,90434.0,0.001]
[1765673701107,0.22116065,90432.0,90431.0,0.00062281]
[1765673701709,0.25087911,90432.0,90431.0,0.00062281]
[1765673717630,0.25087911,90432.0,90431.0,0.03839281]
[1765673718699,0.25087911,90432.0,90431.0,0.00062281]
[1765673719100,0.25087911,90432.0,90431.0,0.00162281]
[1765673719297,0.25087911,90432.0,90431.0,0.00262281]
[1765673720713,0.25087911,90432.0,90431.0,0.00162281]
[1765673720918,0.25087911,90432.0,90431.0,0.00262281]
[1765673721923,0.25087911,90432.0,90431.0,0.02006281]
[1765673722500,0.25087911,90432.0,90431.0,0.01806281]
[1765673723340,0.25087911,90432.0,90431.0,0.04777548]
[1765673726429,0.25087911,90432.0,90431.0,0.01806281]
[1765673726814,0.25087911,90432.0,90431.0,0.05742281]
[1765673728114,0.25087911,90432.0,90431.0,0.01906281]
[1765673728867,0.25087911,90432.0,90431.0,0.02006281]
[1765673729108,0.25087911,90432.0,90431.0,0.01906281]
[1765673729456,0.25087911,90432.0,90431.0,0.05970543]
[1765673729999,0.25087911,90432.0,90431.0,0.05870543]
[1765673730190,0.25087911,90432.0,90431.0,0.05970543]
[1765673731550,0.25087911,90432.0,90431.0,0.02006281]
[1765673736403,0.25087911,90432.0,90431.0,0.04413281]
[1765673736598,0.25087911,90432.0,90431.0,0.05942281]
[1765673737602,0.25087911,90432.0,90431.0,0.02006281]
[1765673738585,0.25087911,90432.0,90431.0,0.00262281]
[1765673738837,0.22117532,90426.0,90423.0,0.02973864]
[1765673739043,0.22118021,90424.0,90423.0,9.36e-05]
[1765673739422,0.25439763,90424.0,90423.0,9.36e-05]
[1765673740282,0.25439763,90424.0,90423.0,0.02982762]
[1765673741791,0.25539763,90424.0,90423.0,0.02982762]
[1765673742090,0.25539763,90424.0,90423.0,9.36e-05]
[1765673744381,0.25539763,90424.0,90423.0,0.00033177]
[1765673752417,0.001,90424.0,90423.0,0.06942579]
[1765673752632,0.001,90424.0,90423.0,0.15049177]
[1765673753322,0.01105852,90428.0,90423.0,0.1615509]
[1765673753527,0.01105864,90427.0,90426.0,0.1108]
[1765673753955,0.01105864,90427.0,90426.0,0.162]
[1765673756576,0.01105852,90428.0,90427.0,0.1108]
[1765673756777,0.01105852,90428.0,90427.0,0.15004]
[1765673758028,0.23222895,90428.0,90427.0,0.15004]
[1765673761564,0.23222895,90428.0,90427.0,0.12669]
[1765673762301,0.23222895,90428.0,90427.0,0.1108]
[1765673763142,0.22117532,90426.0,90425.0,0.03960082]
[1765673766311,0.22117532,90426.0,90425.0,0.06295082]
[1765673766833,0.22117532,90426.0,90425.0,0.03960082]
[1765673767080,0.22118021,90424.0,90423.0,0.03993259]
[1765673770895,0.22118021,90424.0,90423.0,0.18997259]
[1765673771081,0.22118021,90424.0,90423.0,0.07917259]
[1765673775964,0.22118021,90424.0,90423.0,0.05582259]
[1765673776139,0.22118021,90424.0,90423.0,0.01622177]
[1765673779335,0.22118021,90424.0,90423.0,0.00033177]
[1765673779589,0.22118021,90424.0,90423.0,0.01777177]
[1765673779768,0.22118021,90424.0,90423.0,0.05740853]
[1765673781287,0.22118021,90424.0,90423.0,0.01777177]
[1765673794514,0.22118021,90424.0,90423.0,0.00033177]
[1765673794899,0.25439884,90424.0,90423.0,0.00033177]
[1765673795116,0.25439884,90424.0,90423.0,0.03008829]
[1765673795398,0.25439884,90424.0,90423.0,0.00033177]
[1765673798395,0.30969384,90424.0,90423.0,0.00033177]
[1765673799130,0.25439884,90424.0,90423.0,0.00033177]
[1765673800783,0.30969384,90424.0,90423.0,0.00033177]
[1765673803671,0.03321863,90424.0,90423.0,0.03911177]
[1765673803838,0.01105693,90441.0,90436.0,0.01105754]
[1765673804040,0.01647682,90463.0,90435.0,0.01105766]
[1765673804041,0.02975652,90449.0,90442.0,0.02827]
[1765673804246,0.01105583,90450.0,90445.0,0.2618791]
[1765673804449,0.01105546,90453.0,90449.0,0.02827]
[1765673804630,0.01105546,90453.0,90451.0,0.1108]
[1765673804847,0.22111174,90452.0,90451.0,0.14049455]
[1765673805250,0.22111174,90452.0,90451.0,0.12682]
[1765673805662,0.22111174,90452.0,90451.0,0.14958]
[1765673805864,0.22149647,90452.0,90451.0,0.14958]
[1765673806886,0.00038473,90452.0,90451.0,0.14958]
[1765673807298,0.22149647,90452.0,90451.0,0.14958]
[1765673807508,0.00038473,90452.0,90451.0,0.14958]
[1765673808180,0.00038473,90452.0,90451.0,0.17919067]
[1765673809248,0.00038473,90452.0,90451.0,0.14958]
[1765673809935,0.22149647,90452.0,90451.0,0.14958]
[1765673810984,0.00038473,90452.0,90451.0,0.14958]
[1765673812932,0.22149647,90452.0,90451.0,0.14958]
[1765673813140,0.00038473,90452.0,90451.0,0.14958]
[1765673813340,0.22149647,90452.0,90451.0,0.14958]
[1765673815122,0.22149647,90452.0,90451.0,0.1108]
[1765673815438,0.22310934,90452.0,90450.0,0.01748]
[1765673815659,0.22310934,90452.0,90440.0,0.03959716]
[1765673815660,0.22113375,90443.0,90440.0,0.02961067]
[1765673815883,0.22113619,90442.0,90441.0,0.01744]
[1765673819215,0.22114353,90439.0,90438.0,0.03554]
[1765673819441,0.22114353,90439.0,90438.0,0.02969]
[1765673819617,0.22114353,90439.0,90438.0,0.04618]
[1765673820040,0.22114353,90439.0,90438.0,0.06947]
[1765673822129,0.22114353,90439.0,90438.0,0.09908067]
[1765673822369,0.22114353,90439.0,90438.0,0.06947]
[1765673822773,0.22114353,90439.0,90437.0,0.02961067]
[1765673822981,0.22114353,90439.0,90438.0,0.01744]
[1765673823568,0.22114353,90439.0,90437.0,0.02961067]
[1765673823769,0.01105778,90434.0,90433.0,0.01744]
[1765673823945,0.23221354,90434.0,90433.0,0.01744]
[1765673825989,0.22118021,90424.0,90423.0,0.00023817]
[1765673826194,0.22118021,90424.0,90423.0,0.01771817]
[1765673827275,0.22118021,90424.0,90423.0,0.01781177]
[1765673854256,0.22118021,90424.0,90423.0,0.04742244]
[1765673856315,0.22118021,90424.0,90423.0,0.01781177]
[1765673862782,0.22118021,90424.0,90423.0,0.00033177]
[1765673873001,0.2543991,90424.0,90423.0,0.00033177]
[1765673916918,0.61076933,90424.0,90423.0,1.77e-06]
[1765673917129,0.55547433,90424.0,90423.0,1.77e-06]
[1765673917299,0.66617039,90424.0,90423.0,1.77e-06]
[1765673917928,0.55547433,90424.0,90423.0,1.77e-06]
[1765673919296,0.5450991,90424.0,90423.0,1.77e-06]
[1765673937187,0.6003941,90424.0,90423.0,1.77e-06]
[1765673943264,0.61076184,90424.0,90423.0,1.77e-06]
[1765673944265,0.55546684,90424.0,90423.0,1.77e-06]
[1765673955203,0.61076184,90424.0,90423.0,1.77e-06]
[1765673956065,0.61076707,90424.0,90423.0,1.77e-06]
[1765673960525,0.55547207,90424.0,90423.0,1.77e-06]
[1765673966871,0.5450991,90424.0,90423.0,1.77e-06]
[1765673972093,0.2543991,90424.0,90423.0,0.02980807]
[1765673972976,0.2543991,90424.0,90423.0,1.77e-06]
[1765673973114,0.2543991,90424.0,90423.0,0.02980807]
[1765673973326,0.2543991,90424.0,90423.0,1.77e-06]
[1765673973887,0.66616359,90424.0,90423.0,1.77e-06]
[1765673974102,0.56718255,90421.0,90420.0,0.0004]
[1765673974266,0.56718255,90421.0,90420.0,0.00044265]
[1765673974626,0.59698885,90421.0,90420.0,0.00044265]
[1765673977708,0.54169385,90421.0,90420.0,0.00044265]
[1765673977954,0.59698885,90421.0,90420.0,0.00044265]
[1765673982454,0.54169385,90421.0,90420.0,0.00044265]
[1765674000746,0.54169385,90421.0,90419.0,0.0298063]
[1765674000747,0.54169385,90421.0,90419.0,0.01456825]
[1765674001098,0.51188755,90421.0,90419.0,0.01232815]
[1765674001508,0.01105974,90418.0,90415.0,0.00023821]
[1765674001654,0.22119734,90417.0,90415.0,0.00023821]
[1765674002054,0.03322128,90416.0,90415.0,0.00023821]
[1765674005888,0.03322128,90416.0,90415.0,0.03983537]
[1765674006727,0.03322128,90416.0,90415.0,0.00023821]
[1765674009724,0.03322128,90416.0,90415.0,0.04000293]
[1765674016975,0.03322128,90416.0,90415.0,0.00023821]
[1765674017677,0.03322128,90416.0,90415.0,0.01523821]
[1765674017834,0.03322128,90416.0,90415.0,0.03983821]
[1765674020053,0.03322128,90416.0,90415.0,0.00023821]
[1765674021613,0.03322128,90416.0,90415.0,0.03999353]
[1765674025585,0.03322128,90416.0,90415.0,0.00023821]
[1765674027085,0.03322128,90416.0,90415.0,0.03999705]
[1765674030140,0.03322128,90416.0,90415.0,0.00023821]
[1765674032644,0.03322128,90416.0,90415.0,0.04028821]
[1765674036458,0.03322128,90416.0,90415.0,0.12757821]
[1765674036641,0.03322128,90416.0,90415.0,0.00023821]
[1765674047757,0.05461962,90416.0,90415.0,0.00023821]
[1765674048343,0.45762855,90416.0,90415.0,0.00023821]
[1765674048552,0.45762855,90416.0,90391.0,0.07905961]
[1765674048553,0.01106157,90403.0,90396.0,0.03975423]
[1765674048762,0.01106157,90403.0,90393.0,0.01744]
[1765674048763,0.11069606,90401.0,90395.0,0.03975423]
[1765674049101,0.11230893,90401.0,90395.0,0.03975423]
[1765674049240,0.22124872,90396.0,90393.0,0.03975423]
[1765674049438,0.22124872,90396.0,90390.0,0.0004]
[1765674049439,0.11069606,90391.0,90390.0,0.0004]
[1765674049642,0.11230893,90391.0,90390.0,0.0004]
[1765674049849,0.14554254,90391.0,90390.0,0.0004]
[1765674050269,0.03484648,90391.0,90390.0,0.0004]
[1765674054240,0.14554254,90391.0,90390.0,0.0004]
[1765674054651,0.09014148,90391.0,90390.0,0.0004]
[1765674055054,0.09014148,90391.0,90390.0,0.00114464]
[1765674057670,0.03484648,90391.0,90390.0,0.00114464]
[1765674058266,0.0625041,90391.0,90390.0,0.00114464]
[1765674068502,0.17320016,90391.0,90390.0,0.00114464]
[1765674068703,0.17320016,90391.0,90390.0,0.0012215]
[1765674069103,0.17320016,90391.0,90390.0,1.5e-06]
[1765674069934,0.46390016,90391.0,90390.0,1.5e-06]
[1765674070139,0.43624254,90391.0,90390.0,1.5e-06]
[1765674070318,0.68044254,90391.0,90390.0,1.5e-06]
[1765674073694,0.56974648,90391.0,90390.0,1.5e-06]
[1765674076535,0.62504148,90391.0,90390.0,1.5e-06]
[1765674076945,0.68044254,90391.0,90390.0,1.5e-06]
[1765674078182,0.69080955,90391.0,90390.0,1.5e-06]
[1765674081923,0.69080955,90391.0,90380.0,1.5e-06]
[1765674081924,0.6226815,90381.0,90380.0,1.5e-06]
[1765674082103,0.51200748,90372.0,90367.0,0.02972164]
[1765674082319,0.51200748,90372.0,90370.0,0.03012164]
[1765674082522,0.54524532,90372.0,90370.0,0.03012164]
[1765674083268,0.54524532,90372.0,90370.0,0.0004]
[1765674084634,0.22130748,90372.0,90371.0,0.11955164]
[1765674084840,0.22130748,90372.0,90371.0,0.08983]
[1765674085260,0.22130748,90372.0,90371.0,0.06635]
[1765674085677,0.22130748,90372.0,90371.0,0.08924]
[1765674085853,0.22130748,90372.0,90371.0,0.06635]
[1765674086255,0.22130748,90372.0,90371.0,0.05]
[1765674086835,0.22130748,90372.0,90370.0,0.0004]
[1765674087041,0.22132952,90363.0,90362.0,0.02980861]
[1765674087245,0.22132952,90363.0,90362.0,0.01563689]
[1765674087418,0.22132952,90363.0,90362.0,0.03852689]
[1765674089615,0.22132952,90363.0,90362.0,0.01563689]
[1765674089877,0.22132952,90363.0,90362.0,7.689e-05]
[1765674091206,0.22132952,90363.0,90362.0,0.02987605]
[1765674092120,0.22132952,90363.0,90362.0,0.02987817]
[1765674092531,0.22232952,90363.0,90362.0,0.02987817]
[1765674092947,0.22232952,90363.0,90362.0,0.03071254]
[1765674100952,0.33302558,90363.0,90362.0,0.00091126]
[1765674111251,0.33302558,90363.0,90362.0,0.03071254]
[1765674112086,0.33302558,90363.0,90362.0,0.00091126]
[1765674113606,0.22232952,90363.0,90362.0,0.00091126]
[1765674115382,0.25557234,90363.0,90362.0,0.00091126]
[1765674132195,0.91154551,90363.0,90362.0,0.00091126]
[1765674132415,0.40139606,90351.0,90348.0,3.77e-06]
[1765674132628,0.62275498,90351.0,90342.0,0.03975423]
[1765674132833,0.62275498,90351.0,90341.0,0.03975423]
[1765674133028,0.65600594,90351.0,90341.0,0.03975423]
[1765674133233,0.65600594,90351.0,90340.0,0.0004]
[1765674133454,0.65600594,90351.0,90350.0,0.03984]
[1765674133455,0.25460988,90351.0,90350.0,0.03984]
[1765674133760,0.25660988,90351.0,90350.0,0.03984]
[1765674134570,0.25460988,90351.0,90350.0,0.03984]
[1765674136174,0.25560988,90351.0,90350.0,0.03984]
[1765674138278,0.25560988,90351.0,90350.0,0.04019768]
[1765674146391,0.001,90351.0,90350.0,0.07995191]
[1765674147034,0.001,90351.0,90350.0,0.09150191]
[1765674148302,0.001,90351.0,90350.0,0.31286328]
[1765674148921,0.001,90351.0,90350.0,0.27310905]
[1765674150870,0.001,90351.0,90350.0,0.38390905]
[1765674152807,0.01106733,90356.0,90353.0,0.0110677]
[1765674153008,0.01115237,90356.0,90354.0,0.05726202]
[1765674153220,8.504e-05,90356.0,90355.0,0.02794]
[1765674153417,8.504e-05,90356.0,90355.0,0.05107]
[1765674160250,8.504e-05,90356.0,90355.0,0.09085202]
[1765674162798,8.504e-05,90356.0,90355.0,0.05107]
[1765674163162,8.504e-05,90356.0,90355.0,0.16296165]
[1765674163283,8.504e-05,90356.0,90355.0,0.05216165]
[1765674174519,8.504e-05,90356.0,90355.0,1.16296165]
[1765674174721,8.504e-05,90356.0,90355.0,1.16187]
[1765674177662,8.504e-05,90356.0,90355.0,1.24092961]
[1765674177958,8.504e-05,90356.0,90355.0,1.16187]
[1765674178753,8.504e-05,90356.0,90355.0,1.16287]
[1765674181196,8.504e-05,90356.0,90355.0,1.24237604]
[1765674187727,8.504e-05,90356.0,90355.0,0.24237604]
[1765674187930,8.504e-05,90356.0,90355.0,1.24237604]
[1765674188294,8.504e-05,90356.0,90355.0,1.16287]
[1765674203066,8.504e-05,90356.0,90355.0,0.16287]
[1765674203260,8.504e-05,90356.0,90355.0,1.16396165]
[1765674203511,8.504e-05,90356.0,90355.0,1.16287]
[1765674206266,8.504e-05,90356.0,90355.0,0.16287]
[1765674206465,8.504e-05,90356.0,90355.0,1.16396165]
[1765674206706,8.504e-05,90356.0,90355.0,1.16287]
[1765674207435,8.504e-05,90356.0,90355.0,0.16287]
[1765674207756,8.504e-05,90356.0,90355.0,1.16396165]
[1765674207889,8.504e-05,90356.0,90355.0,1.16287]
[1765674218841,8.504e-05,90356.0,90355.0,1.05207]
[1765674218988,8.504e-05,90356.0,90355.0,1.16287]
[1765674221558,8.504e-05,90356.0,90355.0,0.16287]
[1765674221726,8.504e-05,90356.0,90355.0,1.16396165]
[1765674221923,8.504e-05,90356.0,90355.0,1.16287]
[1765674222562,8.504e-05,90356.0,90355.0,1.05207]
[1765674223149,8.504e-05,90356.0,90355.0,1.16287]
[1765674223568,8.504e-05,90356.0,90355.0,0.16287]
[1765674223775,8.504e-05,90356.0,90355.0,1.16396165]
[1765674223973,8.504e-05,90356.0,90355.0,1.16287]
[1765674228237,8.504e-05,90356.0,90355.0,1.05207]
[1765674228470,8.504e-05,90356.0,90355.0,1.16287]
[1765674228639,8.504e-05,90356.0,90355.0,0.16287]
[1765674228846,8.504e-05,90356.0,90355.0,1.16396165]
[1765674229055,8.504e-05,90356.0,90355.0,1.16287]
[1765674242598,8.504e-05,90356.0,90355.0,1.21288839]
[1765674242798,0.044299,90376.0,90373.0,0.01106525]
[1765674242981,0.23236696,90375.0,90374.0,0.01744]
[1765674243418,0.23236696,90375.0,90374.0,0.04007]
[1765674243571,0.23236696,90375.0,90374.0,0.06823]
[1765674245384,0.011065,90375.0,90374.0,0.06823]
[1765674248449,0.04438432,90376.0,90374.0,0.06823]
[1765674248656,0.04438432,90376.0,90375.0,0.03845]
[1765674249102,0.03331944,90376.0,90375.0,0.03845]
[1765674249730,0.03431944,90376.0,90375.0,0.03845]
[1765674249859,0.03331944,90376.0,90375.0,0.03845]
[1765674250209,0.03431944,90376.0,90375.0,0.03845]
[1765674250504,0.03331944,90376.0,90375.0,0.03845]
[1765674250917,0.03431944,90376.0,90375.0,0.03845]
[1765674251296,0.03431944,90376.0,90375.0,0.37055013]
[1765674252314,0.03431944,90376.0,90375.0,0.14925]
[1765674253328,0.03431944,90376.0,90375.0,0.37055013]
[1765674254490,0.00108532,90376.0,90375.0,0.25975013]
[1765674254643,0.00108532,90376.0,90375.0,0.37055013]
[1765674255674,8.532e-05,90376.0,90375.0,0.37055013]
[1765674256583,8.532e-05,90376.0,90375.0,0.37155013]
[1765674265817,8.532e-05,90376.0,90375.0,0.001]
[1765674266025,0.00169819,90376.0,90375.0,0.001]
[1765674266225,0.03492915,90376.0,90375.0,0.001]
[1765674266922,0.01106512,90374.0,90371.0,0.07711486]
[1765674267223,0.22130503,90373.0,90372.0,0.05967486]
[1765674267621,0.25454114,90373.0,90372.0,0.05967486]
[1765674268039,0.25615401,90373.0,90372.0,0.05967486]
[1765674268340,0.25615401,90373.0,90371.0,0.01744]
[1765674269468,0.2229179,90373.0,90371.0,0.01744]
[1765674269766,0.01744,90372.0,90371.0,0.01744]
[1765674284173,0.01744,90372.0,90371.0,0.05648]